bitfinex-derivatives/quotes_SOLF0:USTF0_20241212
["timestamp","ask_amount","ask_price","bid_price","bid_amount"]
[1733986183272,1.3311,229.88,229.79,8.2461059]
[1733986183469,2.1746,229.85,229.8,2.175]
[1733986183667,10.3061059,229.87,229.79,8.2461059]
[1733986183867,10.3061059,229.87,229.75,4.8316]
[1733986184063,2.1746,229.84,229.8,10.4211059]
[1733986184269,2.06,229.86,229.8,10.4211059]
[1733986184766,2.1745,229.85,229.8,2.175]
[1733986184969,2.1745,229.85,229.8,10.4211059]
[1733986187566,8.2461059,229.83,229.77,2.1752]
[1733986188570,2.1748,229.82,229.77,2.1752]
[1733986188870,8.2461059,229.81,229.75,1.361]
[1733986189066,8.2461059,229.81,229.74,1.3179]
[1733986189268,2.1752,229.78,229.74,1.3179]
[1733986191571,2.1755,229.76,229.74,1.3179]
[1733986192976,2.1755,229.76,229.7,10.4220059]
[1733986193176,2.1755,229.76,229.7,10.6377159]
[1733986193776,8.2461059,229.79,229.72,8.2461059]
[1733986193978,2.1753,229.78,229.72,8.2461059]
[1733986194376,2.1753,229.77,229.72,8.2461059]
[1733986194579,8.2461059,229.79,229.71,2.1758]
[1733986194882,8.2461059,229.79,229.72,8.2461059]
[1733986195273,2.1753,229.78,229.72,8.2461059]
[1733986195479,8.2461059,229.79,229.71,2.1758]
[1733986196277,8.2461059,229.75,229.7,0.21571]
[1733986196778,8.2461059,229.73,229.7,0.21571]
[1733986196980,2.06,229.72,229.7,0.21571]
[1733986200282,2.1758,229.71,229.7,0.21571]
[1733986200882,2.06,229.72,229.7,0.21571]
[1733986206693,2.06,229.72,229.69,2.176]
[1733986207694,2.06,229.72,229.68,3.548]
[1733986208491,4.2358,229.72,229.68,1.3719]
[1733986208691,2.06,229.72,229.68,1.3719]
[1733986209387,2.06,229.72,229.68,3.548]
[1733986211886,2.06,229.72,229.66,2.1762]
[1733986212088,8.2461059,229.71,229.62,1.4468]
[1733986212288,8.2461059,229.69,229.63,8.2461059]
[1733986213600,8.2461059,229.69,229.63,10.4227059]
[1733986213601,2.1761,229.68,229.63,10.4227059]
[1733986214194,2.176,229.7,229.65,8.2461059]
[1733986214494,2.06,229.71,229.67,8.2461059]
[1733986214693,8.2461059,229.74,229.67,8.2461059]
[1733986214694,2.06,229.72,229.67,8.2461059]
[1733986215198,2.06,229.72,229.62,1.4468]
[1733986215199,12.4819059,229.72,229.65,10.4225059]
[1733986215398,12.4819059,229.72,229.65,8.2461059]
[1733986215702,10.3061059,229.72,229.65,8.2461059]
[1733986215903,2.1759,229.71,229.66,2.1763]
[1733986216092,8.2461059,229.7,229.63,8.2461059]
[1733986217006,2.176,229.69,229.64,2.1765]
[1733986219698,55.78820375,229.78,229.67,8.2461059]
[1733986220002,2.1758,229.72,229.67,10.4223059]
[1733986220199,2.06,229.71,229.67,10.4223059]
[1733986220403,2.06,229.71,229.67,8.2461059]
[1733986220602,2.06,229.71,229.68,2.1761]
[1733986221602,2.06,229.71,229.69,8.2461059]
[1733986221802,2.1757,229.74,229.69,10.4221059]
[1733986222008,4.2357,229.74,229.69,10.4221059]
[1733986223302,177.52121712,229.89,229.73,8.2461059]
[1733986223507,193.0,230.0,229.7,2.06]
[1733986223508,8.2461059,229.84,229.75,8.2461059]
[1733986223807,8.2461059,229.82,229.75,8.2461059]
[1733986224110,2.06,229.81,229.75,8.2461059]
[1733986224307,2.1751,229.79,229.75,8.2461059]
[1733986224513,8.2461059,229.79,229.71,1.452]
[1733986224811,8.2461059,229.77,229.71,9.6981059]
[1733986225006,8.2461059,229.77,229.71,1.452]
[1733986225410,8.2461059,229.77,229.69,8.2461059]
[1733986226005,2.06,229.8,229.71,8.2461059]
[1733986226216,8.2461059,229.79,229.71,8.2461059]
[1733986227207,2.1754,229.76,229.71,10.4219059]
[1733986227604,2.1754,229.76,229.73,8.2461059]
[1733986227809,8.2461059,229.79,229.73,8.2461059]
[1733986228008,2.1753,229.77,229.73,8.2461059]
[1733986228712,8.2461059,229.79,229.73,8.2461059]
[1733986229008,2.06,229.81,229.77,8.2461059]
[1733986229210,1.3862,229.87,229.77,8.2461059]
[1733986229511,2.1746,229.84,229.79,8.2461059]
[1733986230011,8.2461059,229.84,229.71,2.06]
[1733986230211,2.1752,229.78,229.72,8.2461059]
[1733986230421,8.2461059,229.79,229.72,8.2461059]
[1733986231615,2.1753,229.77,229.72,10.4218059]
[1733986232219,2.1752,229.78,229.72,10.4218059]
[1733986232922,2.1752,229.78,229.74,8.2461059]
[1733986234720,2.06,229.8,229.74,8.2461059]
[1733986234918,2.06,229.81,229.76,8.2461059]
[1733986235418,4.2349,229.81,229.76,8.2461059]
[1733986235619,4.2349,229.81,229.67,6.267]
[1733986235620,10.3061059,229.81,229.74,8.2461059]
[1733986236713,2.1752,229.78,229.74,8.2461059]
[1733986236919,10.3061059,229.81,229.74,8.2461059]
[1733986237116,2.06,229.81,229.76,8.2461059]
[1733986237512,2.06,229.84,229.78,8.2461059]
[1733986237919,8.2461059,229.86,229.78,8.2461059]
[1733986238114,2.06,229.85,229.78,8.2461059]
[1733986238517,2.1748,229.83,229.78,8.2461059]
[1733986239120,2.1748,229.83,229.76,8.2461059]
[1733986239621,2.1749,229.81,229.76,8.2461059]
[1733986239918,2.1749,229.81,229.74,8.2461059]
[1733986240520,2.1749,229.81,229.76,8.2461059]
[1733986240717,2.1749,229.81,229.76,10.4214059]
[1733986241326,8.2461059,229.82,229.76,8.2461059]
[1733986241622,2.06,229.85,229.78,8.2461059]
[1733986241830,2.06,229.85,229.8,8.2461059]
[1733986242126,2.06,229.85,229.81,2.1748]
[1733986242320,2.1744,229.86,229.81,2.1748]
[1733986245330,2.1745,229.85,229.8,8.2461059]
[1733986245529,8.2461059,229.85,229.79,1.3606]
[1733986245930,8.2461059,229.85,229.79,3.5357]
[1733986246229,2.1745,229.86,229.8,8.2461059]
[1733986247025,2.04,229.88,229.8,8.2461059]
[1733986247226,2.04,229.88,229.82,8.2461059]
[1733986247630,2.04,229.88,229.83,2.1747]
[1733986247631,2.1743,229.88,229.83,2.1747]
[1733986250025,2.6544,229.98,229.84,8.2461059]
[1733986250229,2.6544,229.98,229.86,8.2461059]
[1733986250230,8.2461059,229.94,229.86,8.2461059]
[1733986251025,2.1739,229.92,229.86,10.4204059]
[1733986251430,2.6544,229.98,229.86,8.2461059]
[1733986251626,2.1734,229.97,229.92,8.2461059]
[1733986251831,10.2861059,230.01,229.94,8.2461059]
[1733986253432,8.2461059,229.97,229.9,8.2461059]
[1733986253627,10.4196059,229.97,229.9,2.174]
[1733986253832,2.04,230.01,229.91,8.2461059]
[1733986254033,8.2461059,230.0,229.91,8.2461059]
[1733986254228,2.1733,229.98,229.92,2.1738]
[1733986254430,2.1733,229.98,229.93,8.2461059]
[1733986254624,10.2861059,230.0,229.93,8.2461059]
[1733986255026,2.1733,229.99,229.94,2.1736]
[1733986255225,2.04,230.0,229.94,2.1736]
[1733986256530,4.2132,230.0,229.95,10.4197059]
[1733986257035,59.9215478,230.07,229.95,8.2461059]
[1733986257236,2.1729,230.03,229.97,2.1734]
[1733986257433,2.04,230.06,229.93,12.87007149]
[1733986258137,2.04,230.06,229.91,2.04]
[1733986258341,2.1732,230.0,229.94,2.1736]
[1733986259436,2.1733,229.98,229.92,2.1738]
[1733986260539,2.1733,229.98,229.9,12.87007149]
[1733986260540,2.1733,229.98,229.93,2.1737]
[1733986260936,2.1732,230.0,229.93,12.87007149]
[1733986262733,59.9215478,230.07,229.93,12.87007149]
[1733986262938,58.5595478,230.07,229.96,12.87007149]
[1733986263140,60.5995478,230.07,229.97,1.315]
[1733986263843,2.1727,230.05,229.97,1.315]
[1733986264044,58.5595478,230.07,229.97,1.315]
[1733986264242,1.3706,230.12,229.99,12.87007149]
[1733986264436,2.1725,230.06,230.0,2.173]
[1733986264639,2.1725,230.06,229.99,12.87007149]
[1733986264844,2.04,230.09,229.99,12.87007149]
[1733986265143,1.3706,230.12,229.99,12.87007149]
[1733986265342,2.04,230.11,229.99,12.87007149]
[1733986265542,2.1725,230.07,230.01,2.173]
[1733986266645,2.04,230.11,230.01,2.173]
[1733986266847,2.04,230.11,229.99,15.04317149]
[1733986267241,2.04,230.11,229.99,12.87007149]
[1733986267441,14.91007149,230.11,229.97,4.2104]
[1733986267645,12.87007149,230.08,229.97,1.315]
[1733986267840,2.1731,230.0,229.97,1.315]
[1733986268446,2.1732,229.99,229.93,2.1737]
[1733986268641,2.04,229.99,229.86,1.379]
[1733986268942,2.1736,229.95,229.89,2.1741]
[1733986270449,2.1736,229.95,229.89,15.04417149]
[1733986270647,2.1735,229.97,229.9,2.174]
[1733986271946,2.1735,229.97,229.89,13.20144149]
[1733986271947,4.2133,229.99,229.93,2.1737]
[1733986272449,2.1734,229.97,229.91,2.1739]
[1733986272649,2.1734,229.97,229.89,13.20144149]
[1733986272650,2.04,229.99,229.89,13.20144149]
[1733986273345,2.1733,229.98,229.89,13.20144149]
[1733986273745,2.04,229.99,229.89,13.20144149]
[1733986273946,2.1734,229.97,229.92,2.1738]
[1733986276845,2.04,229.99,229.92,12.87007149]
[1733986277047,1.3968,230.04,229.92,12.87007149]
[1733986277246,1.3968,230.04,229.95,12.87007149]
[1733986277247,2.04,230.04,229.95,12.87007149]
[1733986277554,236.98650139,230.16,229.98,12.87007149]
[1733986277555,14.85337149,230.12,229.98,12.87007149]
[1733986277751,2.04,230.11,229.98,12.87007149]
[1733986278250,2.04,230.11,230.0,2.1731]
[1733986278653,2.1726,230.06,230.0,2.1731]
[1733986279057,2.1726,230.06,230.01,2.173]
[1733986280156,2.1718,230.14,230.05,12.87007149]
[1733986280461,2.04,230.18,230.06,2.04]
[1733986280751,2.04,230.18,230.06,3.4404]
[1733986281157,1.3832,230.21,230.06,3.4404]
[1733986281158,2.04,230.17,230.06,3.4404]
[1733986281558,2.1717,230.16,230.09,2.1722]
[1733986282258,2.1719,230.13,230.07,2.1724]
[1733986282459,2.04,230.17,230.06,3.4404]
[1733986282856,2.172,230.12,230.06,3.4404]
[1733986283055,12.87007149,230.17,230.02,12.87007149]
[1733986283259,2.04,230.16,230.02,12.87007149]
[1733986284257,2.04,230.16,230.05,15.04267149]
[1733986284851,2.04,230.16,230.05,14.91007149]
[1733986285057,2.1717,230.15,230.09,2.1722]
[1733986285257,2.04,230.16,230.08,12.87007149]
[1733986286655,2.1715,230.17,230.11,12.87007149]
[1733986287961,64.5444735,230.21,230.11,12.87007149]
[1733986287962,2.1716,230.16,230.11,12.87007149]
[1733986289362,2.1717,230.15,230.08,15.04237149]
[1733986289560,64.5444735,230.21,230.08,12.87007149]
[1733986290266,2.1719,230.14,230.08,12.87007149]
[1733986290463,2.04,230.16,230.08,12.87007149]
[1733986291562,2.1719,230.13,230.08,12.87007149]
[1733986292960,2.172,230.12,230.08,12.87007149]
[1733986293666,2.172,230.12,230.06,2.7458]
[1733986293667,2.1723,230.09,230.05,12.87007149]
[1733986296365,2.04,230.11,230.05,12.87007149]
[1733986297672,2.1722,230.1,230.05,12.87007149]
[1733986298359,2.1723,230.09,230.05,12.87007149]
[1733986299561,2.04,230.11,230.05,12.87007149]
[1733986299762,2.04,230.15,230.02,2.04]
[1733986299972,2.04,230.14,230.04,12.87007149]
[1733986300359,2.1721,230.11,230.04,15.04277149]
[1733986300762,2.04,230.14,230.04,15.04277149]
[1733986301264,2.1721,230.11,230.04,12.87007149]
[1733986301464,2.1721,230.11,230.05,2.1726]
[1733986301659,2.1721,230.11,230.04,12.87007149]
[1733986301870,2.172,230.12,230.07,12.87007149]
[1733986302676,2.172,230.12,230.07,15.04247149]
[1733986303664,2.172,230.12,230.07,2.1724]
[1733986305271,2.1717,230.15,230.1,10.39946826]
[1733986305569,1.3832,230.21,230.14,8.22736826]
[1733986305768,1.3832,230.21,230.16,8.22736826]
[1733986305769,2.04,230.2,230.16,8.22736826]
[1733986305966,1.3832,230.21,230.16,8.22736826]
[1733986306276,2.04,230.2,230.16,8.22736826]
[1733986306676,2.1715,230.18,230.16,8.22736826]
[1733986307176,2.1715,230.18,230.13,2.1719]
[1733986308576,2.1715,230.17,230.12,12.84870577]
[1733986308771,2.04,230.16,230.09,14.30260577]
[1733986308971,2.04,230.16,230.09,1.4539]
[1733986309672,2.172,230.12,230.09,1.4539]
[1733986310978,2.04,230.16,230.09,1.4539]
[1733986311175,2.04,230.16,230.06,12.84870577]
[1733986311776,2.172,230.12,230.06,15.02120577]
[1733986312983,2.1717,230.15,230.1,2.1722]
[1733986313384,2.1717,230.15,230.09,12.84870577]
[1733986313583,2.04,230.2,230.09,12.84870577]
[1733986314080,2.04,230.2,230.09,15.02090577]
[1733986315188,2.1718,230.15,230.09,15.02090577]
[1733986315578,2.1718,230.15,230.09,12.84870577]
[1733986315886,2.1718,230.15,230.1,2.1721]
[1733986316081,2.1718,230.14,230.1,2.1721]
[1733986318683,2.1718,230.14,230.09,12.84870577]
[1733986318888,2.1719,230.13,230.09,12.84870577]
[1733986321389,2.1717,230.15,230.09,15.02090577]
[1733986321590,2.1717,230.15,230.09,12.84870577]
[1733986322093,2.1716,230.17,230.09,12.84870577]
[1733986322287,2.1716,230.17,230.1,1.3921]
[1733986322489,2.1716,230.17,230.1,3.4321]
[1733986322787,2.1716,230.17,230.12,2.172]
[1733986322984,2.1716,230.16,230.1,3.4321]
[1733986323690,2.04,230.21,230.1,3.4321]
[1733986323889,2.04,230.21,230.1,1.3921]
[1733986324691,2.1719,230.14,230.1,1.3921]
[1733986324888,2.04,230.21,230.1,1.3921]
[1733986325396,2.1719,230.13,230.1,1.3921]
[1733986325884,2.04,230.16,230.1,1.3921]
[1733986326187,2.1721,230.11,230.07,1.3843]
[1733986327186,2.1721,230.11,230.08,8.2283626]
[1733986330692,2.04,230.14,230.08,8.2283626]
[1733986330989,8.2283626,230.1,229.9,18.07694496]
[1733986331189,8.2283626,230.08,230.01,8.2283626]
[1733986331393,10.2683626,230.08,230.01,8.2283626]
[1733986331596,10.2683626,230.08,229.98,1.3258]
[1733986331895,2.1727,230.04,230.02,8.2283626]
[1733986332095,10.2683626,230.08,230.02,8.2283626]
[1733986332890,2.1725,230.07,230.02,8.2283626]
[1733986333090,10.2683626,230.08,230.02,8.2283626]
[1733986333290,2.04,230.08,230.02,8.2283626]
[1733986333486,2.1727,230.04,229.99,2.56087]
[1733986333789,8.2283626,230.0,229.99,0.38777]
[1733986333991,8.2283626,230.0,229.92,15.2176181]
[1733986333992,10.2683626,230.0,229.92,15.2176181]
[1733986334198,8.2283626,229.97,229.88,8.2283626]
[1733986334695,2.1738,229.93,229.88,8.2283626]
[1733986334997,1.3207,230.02,229.9,8.2283626]
[1733986334998,2.04,229.94,229.9,8.2283626]
[1733986335288,2.04,230.04,229.92,8.2283626]
[1733986335489,2.04,230.04,229.97,8.2283626]
[1733986335690,2.1729,230.03,229.97,8.2283626]
[1733986337191,2.1729,230.02,229.97,8.2283626]
[1733986338696,2.173,230.01,229.97,8.2283626]
[1733986338994,10.2683626,230.04,229.97,8.2283626]
[1733986339298,2.04,230.03,229.97,8.2283626]
[1733986339598,2.1729,230.02,229.97,8.2283626]
[1733986341097,2.173,230.01,229.97,8.2283626]
[1733986341795,2.173,230.01,229.95,8.2283626]
[1733986342096,2.1732,229.99,229.94,8.2283626]
[1733986343296,2.04,230.04,229.96,10.4018626]
[1733986344696,2.1729,230.02,229.96,10.4018626]
[1733986351500,2.173,230.01,229.96,10.4018626]
[1733986351904,8.2283626,230.03,229.94,2.1736]
[1733986352298,8.2283626,230.03,229.94,10.4019626]
[1733986352503,8.2283626,229.99,229.85,4.2208]
[1733986352704,14.4635,230.11,229.85,12.4491626]
[1733986352705,8.2283626,229.92,229.85,12.4491626]
[1733986353203,2.1738,229.93,229.87,10.4026626]
[1733986354011,2.1733,229.98,229.91,10.4023626]
[1733986354203,2.04,229.99,229.91,10.4023626]
[1733986354404,8.2283626,229.98,229.89,8.2283626]
[1733986354603,2.04,229.99,229.87,12.4426626]
[1733986354604,2.1736,229.95,229.87,12.4426626]
[1733986354813,8.2283626,229.96,229.87,12.4426626]
[1733986355011,8.2283626,229.96,229.87,10.2683626]
[1733986355908,8.2283626,229.94,229.87,8.2283626]
[1733986356105,10.2683626,229.94,229.87,8.2283626]
[1733986356706,2.1738,229.93,229.87,10.4026626]
[1733986359410,2.1738,229.93,229.87,8.2283626]
[1733986359610,2.1738,229.93,229.88,2.1742]
[1733986360207,2.1739,229.92,229.87,8.2283626]
[1733986361706,2.1739,229.92,229.87,10.4026626]
[1733986362916,12.4421626,229.94,229.87,10.4026626]
[1733986363810,179.0618241,230.1,229.9,2.174]
[1733986364012,8.2283626,230.0,229.91,8.2283626]
[1733986364314,2.04,229.99,229.93,8.2283626]
[1733986365014,8.2283626,230.0,229.93,8.2283626]
[1733986365315,2.1732,230.0,229.94,2.1736]
[1733986365520,0.6129,230.1,229.93,8.2283626]
[1733986365521,2.04,230.02,229.93,8.2283626]
[1733986365716,2.04,230.02,229.89,2.04]
[1733986365717,10.2683626,230.02,229.95,8.2283626]
[1733986367516,8.2283626,230.02,229.95,8.2283626]
[1733986367717,10.4012626,230.02,229.97,2.1734]
[1733986367920,2.1729,230.02,229.97,2.1734]
[1733986368117,2.1729,230.02,229.97,10.4017626]
[1733986368318,2.1728,230.03,229.97,10.4017626]
[1733986369523,2.1729,230.02,229.97,10.4017626]
[1733986370220,2.1729,230.02,229.97,2.1734]
[1733986370421,2.173,230.01,229.95,10.4019626]
[1733986371225,2.173,230.01,229.95,8.2283626]
[1733986371426,2.173,230.01,229.96,2.1735]
[1733986373421,10.2683626,230.04,229.95,8.2283626]
[1733986373625,10.2683626,230.04,229.93,8.2283626]
[1733986373626,8.2283626,230.02,229.93,8.2283626]
[1733986374634,2.1732,229.99,229.94,2.1737]
[1733986376833,8.2283626,230.0,229.93,8.2283626]
[1733986376834,2.1733,229.98,229.93,8.2283626]
[1733986378433,2.1733,229.98,229.93,10.4021626]
[1733986378837,8.2283626,230.0,229.93,8.2283626]
[1733986379038,2.1734,229.97,229.93,8.2283626]
[1733986381840,2.1733,229.98,229.93,8.2283626]
[1733986382245,2.04,230.05,229.97,8.2283626]
[1733986382445,2.04,230.05,229.99,8.2283626]
[1733986383049,8.2283626,230.06,229.99,8.2283626]
[1733986383250,2.1724,230.08,230.0,2.1731]
[1733986383449,10.2683626,230.07,230.0,2.1731]
[1733986383944,2.1727,230.04,229.99,2.1732]
[1733986384143,8.2283626,230.03,229.95,8.2283626]
[1733986384340,8.2283626,230.05,229.97,8.2283626]
[1733986384548,2.1728,230.04,230.0,2.1731]
[1733986384749,8.2283626,230.05,230.0,2.1731]
[1733986385141,1.3935,230.11,230.01,8.2283626]
[1733986385341,8.2283626,230.1,230.03,8.2283626]
[1733986385547,10.2683626,230.1,230.03,8.2283626]
[1733986386353,1.3346,230.18,230.03,8.2283626]
[1733986386549,2.04,230.11,230.03,8.2283626]
[1733986386747,10.2683626,230.11,230.03,8.2283626]
[1733986387146,10.2683626,230.11,230.03,10.4010626]
[1733986387451,8.2283626,230.09,230.03,10.4010626]
[1733986388645,10.4006626,230.09,230.03,10.4010626]
[1733986389640,10.4006626,230.09,230.04,2.1727]
[1733986389641,2.1723,230.09,230.04,2.1727]
[1733986390541,10.2683626,230.11,230.06,2.1725]
[1733986390542,12.4404626,230.11,230.06,2.1725]
[1733986390747,12.4404626,230.11,230.03,8.2283626]
[1733986391752,2.1722,230.1,230.04,2.1726]
[1733986391946,2.1722,230.1,230.03,8.2283626]
[1733986393650,2.1722,230.1,230.05,2.1726]
[1733986396661,10.2683626,230.11,230.05,2.1726]
[1733986396662,2.04,230.11,230.08,2.1723]
[1733986396846,10.2683626,230.13,230.08,2.1723]
[1733986397253,12.4402626,230.13,230.09,2.1722]
[1733986397753,10.4002626,230.13,230.05,8.2283626]
[1733986398558,10.4002626,230.13,230.08,2.1723]
[1733986399258,2.1719,230.13,230.08,2.1723]
[1733986399454,2.1719,230.13,230.05,8.2283626]
[1733986399669,2.1719,230.13,230.08,2.1723]
[1733986402965,2.172,230.12,230.08,2.1723]
[1733986403161,8.2283626,230.1,230.03,8.2283626]
[1733986404561,2.1723,230.09,230.04,2.1727]
[1733986407764,2.1721,230.11,230.07,8.2283626]
[1733986407964,10.2683626,230.14,230.07,8.2283626]
[1733986409261,2.04,230.14,230.07,8.2283626]
[1733986409661,2.172,230.12,230.07,10.4007626]
[1733986410561,2.172,230.12,230.07,2.1724]
[1733986410770,2.172,230.12,230.07,10.4007626]
[1733986414373,8.2283626,230.11,230.03,1.3446]
[1733986414572,8.2283626,230.11,230.03,9.5729626]
[1733986414970,2.1723,230.09,230.04,2.1727]
[1733986415675,2.04,230.14,230.03,9.5729626]
[1733986415872,2.1722,230.11,230.05,2.1726]
[1733986416673,8.2283626,230.12,230.05,2.1726]
[1733986416874,2.1722,230.1,230.05,2.1726]
[1733986422271,2.1722,230.1,230.05,10.4009626]
[1733986423976,2.1724,230.08,230.03,2.1727]
[1733986424172,8.2283626,230.08,230.01,8.2283626]
[1733986424779,2.1725,230.07,230.0,3.584]
[1733986424978,8.2283626,230.08,230.0,3.584]
[1733986425174,8.2283626,230.08,230.0,1.411]
[1733986425373,8.2283626,230.08,230.0,9.6393626]
[1733986425569,8.2283626,230.08,230.0,1.411]
[1733986425783,8.2283626,230.08,230.0,9.6393626]
[1733986426279,2.1726,230.05,230.0,11.8124626]
[1733986427473,2.1725,230.07,230.0,9.6393626]
[1733986427678,2.1725,230.07,230.01,2.173]
[1733986427876,8.2283626,230.08,230.01,2.173]
[1733986428579,2.1725,230.06,230.01,2.173]
[1733986430087,2.1725,230.06,230.01,10.4013626]
[1733986433774,2.1727,230.05,230.01,10.4013626]
[1733986433981,2.1727,230.05,230.01,2.173]
[1733986436184,2.1727,230.05,230.0,1.411]
[1733986436185,2.1727,230.04,230.0,1.411]
[1733986443893,2.1728,230.03,229.98,2.1733]
[1733986444187,8.2283626,230.04,229.98,8.2283626]
[1733986444586,8.2283626,230.06,229.98,8.2283626]
[1733986445696,10.2683626,230.07,230.0,8.2283626]
[1733986446694,2.1725,230.06,230.01,2.1729]
[1733986448292,10.2683626,230.07,230.01,2.1729]
[1733986448492,2.1727,230.05,230.01,2.1729]
[1733986448695,8.2283626,230.05,229.97,1.4369]
[1733986448898,2.173,230.02,229.97,11.8385626]
[1733986449597,2.173,230.01,229.97,11.8385626]
[1733986450201,2.173,230.01,229.97,10.4016626]
[1733986450397,2.173,230.01,229.96,8.2283626]
[1733986450699,8.2283626,230.04,229.96,8.2283626]
[1733986450900,8.2283626,230.04,229.94,1.3866]
[1733986451099,2.1729,230.02,229.97,10.4017626]
[1733986451299,8.2283626,230.04,229.97,8.2283626]
[1733986451594,8.2283626,230.02,229.94,9.6149626]
[1733986451794,2.1732,229.99,229.94,11.7886626]
[1733986452303,2.1733,229.98,229.94,1.3866]
[1733986452998,2.1735,229.96,229.94,1.3866]
[1733986453196,2.1735,229.96,229.9,1.3927]
[1733986453197,2.1735,229.96,229.9,9.6210626]
[1733986453398,8.2283626,229.98,229.9,9.6210626]
[1733986453791,2.1737,229.94,229.89,3.547]
[1733986453995,10.2683626,229.96,229.89,3.547]
[1733986454204,10.2683626,229.96,229.89,1.3729]
[1733986455196,2.1736,229.95,229.88,8.2283626]
[1733986455898,10.2683626,229.96,229.87,1.4492]
[1733986456097,2.1737,229.94,229.88,10.4025626]
[1733986457796,8.2283626,229.94,229.87,1.4492]
[1733986458002,2.04,229.96,229.87,1.4492]
[1733986458003,8.2283626,229.92,229.87,1.4492]
[1733986458599,8.2283626,229.92,229.87,3.6235]
[1733986458905,0.609,230.05,229.75,15.21943469]
[1733986458906,8.2283626,229.88,229.75,15.21943469]
[1733986459105,5.19365805,229.99,229.81,2.1749]
[1733986459106,8.2283626,229.86,229.81,2.1749]
[1733986459406,1.3201,229.95,229.78,8.2283626]
[1733986459602,8.2283626,229.89,229.82,8.2283626]
[1733986459907,2.04,229.88,229.84,8.2283626]
[1733986460299,2.04,229.88,229.83,8.2283626]
[1733986460905,2.04,229.88,229.82,5.21752835]
[1733986461208,2.04,229.87,229.82,5.21752835]
[1733986462305,2.04,229.87,229.85,8.2283626]
[1733986462505,8.2283626,229.91,229.85,8.2283626]
[1733986462695,2.04,229.9,229.85,8.2283626]
[1733986464103,2.1739,229.92,229.87,8.2283626]
[1733986464104,2.04,229.92,229.87,8.2283626]
[1733986465714,2.04,229.92,229.87,10.4026626]
[1733986466016,2.04,229.92,229.87,8.2283626]
[1733986467707,2.04,229.92,229.88,2.1742]
[1733986469118,2.04,229.94,229.89,8.2283626]
[1733986470114,2.04,229.94,229.91,2.1739]
[1733986470817,2.04,229.94,229.92,2.1739]
[1733986471715,5.17293202,230.01,229.89,8.2283626]
[1733986471918,8.2283626,229.98,229.93,2.1738]
[1733986472917,10.4016626,229.98,229.93,2.1738]
[1733986473913,8.2283626,229.98,229.95,2.1735]
[1733986474923,2.7856,230.04,229.93,8.2283626]
[1733986475119,8.2283626,230.02,229.95,8.2283626]
[1733986476023,2.04,230.01,229.95,8.2283626]
[1733986477530,2.04,230.01,229.97,2.1733]
[1733986477926,8.2283626,230.02,229.94,8.2283626]
[1733986478128,2.04,230.01,229.94,8.2283626]
[1733986478628,4.213,230.01,229.96,2.1735]
[1733986480325,2.04,230.01,229.94,8.2283626]
[1733986480526,2.04,230.01,229.94,10.4019626]
[1733986480730,8.2283626,230.0,229.94,2.1736]
[1733986481023,2.1733,229.98,229.93,2.1738]
[1733986481626,8.2283626,229.96,229.9,2.174]
[1733986481930,2.04,229.95,229.9,2.174]
[1733986482628,4.2136,229.95,229.9,2.174]
[1733986483428,2.04,229.95,229.9,2.174]
[1733986484129,2.04,229.95,229.91,8.2283626]
[1733986484329,2.04,229.95,229.93,10.4021626]
[1733986486733,2.04,229.95,229.93,2.1738]
[1733986486930,2.04,229.95,229.83,74.89213961]
[1733986487128,2.04,229.95,229.9,2.174]
[1733986488433,2.04,229.95,229.91,2.1739]
[1733986491932,2.1737,229.94,229.86,8.2283626]
[1733986492130,8.2283626,229.93,229.86,8.2283626]
[1733986492429,8.2283626,229.93,229.83,72.85213961]
[1733986492430,8.2283626,229.93,229.84,8.2283626]
[1733986492634,10.4023626,229.91,229.83,72.85213961]
[1733986492829,2.04,229.9,229.83,81.08050221]
[1733986493133,2.04,229.9,229.86,2.1744]
[1733986499140,2.04,229.9,229.87,2.1743]